Workbook

Sheet Disclaimer
B13: DISCLAIMER, AUTHORISATION AND ACKNOWLEDGEMENT

Sheet Change Log
B14: Change Log
C16: Release Date | D16: Summary of Changes
B17: Green Star - Interiors Version 1.1 | C17: 3/12/2015, Release 1 | D17: Released for Green Star - Interiors v1.1, no changes (r1).
B18: Green Star - Interiors Version 1.0 | C18: 16/09/2015, Release 3 | D18: Updates to user functionality and addition of alternate criteria for multi-unit residential projects (r3).
C19: 12/01/2015, Release 2 | D19: Minor edits to terminology and adjustment to formulas (r2).
C20: 8/01/2015, Release 1 | D20: Initial release (r1).

Sheet Transport
S1: 4 | T1: Id | U1: SA2 | V1: State | W1: Train | X1: Bus | Y1: Ferry | Z1: Tram | AA1: Car Driver | AB1: Car Passenger | AC1: Motorbike | AD1: Bicycle | AE1: Walk | AF1: Worked from home | AG1: Trip Length | AH1: X | AI1: Y
B2: Reference | C2: Adjusted | D2: Proposed | G2: Building Address | H2: 179 Elizabeth Street, Sydney NSW 2000 | J2: 151.2098436 | K2: -33.8720778 | L2: Emissions Intensity | M2: Reference | N2: Current | O2: Unit | T2: 1 | U2: Goulburn | V2: New South Wales | W2: 0.0005371290453 | X2: 0.002819927488 | Y2: 0 | Z2: 0 | AA2: 0.8505438432 | AB2: 0.08137505036 | AC2: 0.006579830804 | AD2: 0.005237008191 | AE2: 0.05290721096 | AF2: 0.02 | AG2: 21.33 | AH2: 149.71954 | AI2: -34.75054 | AU2: Points | BG2: Check if updated
A3: Train | B3: =IF($H$4="Multi-unit Residential",VLOOKUP($H$7,$U$2200:$AI$4395,3,FALSE),VLOOKUP($H$7,$U$2:$AG$2197,3,FALSE)) -> 0.4264000502 | C3: 0.4264000502 | D3: 0.4264000502 | E3: =IF(SUM(BG3:BG11)=0,"","Proposed mode share has been changed, other mode shares need to be updated. Please press 'Update Mode Shares' button.") ->  | L3: Train | M3: =AR61 -> 140.64 | N3: 140.64 | O3: g CO2-e / passenger km | T3: 2 | U3: Goulburn Region | V3: New South Wales | W3: 0.002702702703 | X3: 0.009189189189 | Y3: 0 | Z3: 0 | AA3: 0.7897297297 | AB3: 0.07189189189 | AC3: 0.01567567568 | AD3: 0.002702702703 | AE3: 0.1081081081 | AF3: 0.02 | AG3: 18.67 | AH3: 149.60464 | AI3: -34.51648 | AU3: 1 | AV3: 2 | AW3: 3 | BG3: =IF(OR(B3=C3,D3=C3),0,1) -> 0
A4: Bus | B4: =IF($H$4="Multi-unit Residential",VLOOKUP($H$7,$U$2200:$AI$4395,4,FALSE),VLOOKUP($H$7,$U$2:$AG$2197,4,FALSE)) -> 0.2522493808 | C4: 0.2522493808 | D4: 0.2522493808 | G4: Building Type | H4: Office | L4: Bus | M4: =AR59 -> 131.08 | N4: 131.08 | O4: g CO2-e / passenger km | T4: 3 | U4: Yass | V4: New South Wales | W4: 0 | X4: 0.003360215054 | Y4: 0 | Z4: 0 | AA4: 0.8373655914 | AB4: 0.07795698925 | AC4: 0.003360215054 | AD4: 0.003360215054 | AE4: 0.07459677419 | AF4: 0.02 | AG4: 9.8 | AH4: 148.91596 | AI4: -34.82286 | AT4: Criterion 1. Emissions reduction | AU4: 25-35% | AV4: 35-45% | AW4: >45% | BG4: =IF(OR(B4=C4,D4=C4),0,1) -> 0
A5: Ferry | B5: =IF($H$4="Multi-unit Residential",VLOOKUP($H$7,$U$2200:$AI$4395,5,FALSE),VLOOKUP($H$7,$U$2:$AG$2197,5,FALSE)) -> 0.02790695244 | C5: 0.02790695244 | D5: 0.02790695244 | I5: =SUM(D3:D11) -> 1 | L5: Ferry | M5: =AR59 -> 131.08 | N5: 131.08 | O5: g CO2-e / passenger km | T5: 4 | U5: Yass Region | V5: New South Wales | W5: 0.004319654428 | X5: 0.008639308855 | Y5: 0 | Z5: 0 | AA5: 0.7332613391 | AB5: 0.06587473002 | AC5: 0.01079913607 | AD5: 0 | AE5: 0.1771058315 | AF5: 0.02 | AG5: 14.31 | AH5: 148.89315 | AI5: -34.87672 | AT5: Criterion 2. Active mode encouragement | AU5: > 50% | AV5: > 100% | BG5: 0
A6: Tram | B6: =IF($H$4="Multi-unit Residential",VLOOKUP($H$7,$U$2200:$AI$4395,6,FALSE),VLOOKUP($H$7,$U$2:$AG$2197,6,FALSE)) -> 0.002121367289 | C6: 0.002121367289 | D6: 0.002121367289 | H6: Sydney - Haymarket - The Rocks | L6: Tram | M6: =AR60 -> 152.36 | N6: 152.36 | O6: g CO2-e / passenger km | T6: 5 | U6: Young | V6: New South Wales | W6: 0 | X6: 0.003577817531 | Y6: 0 | Z6: 0 | AA6: 0.8553965414 | AB6: 0.07245080501 | AC6: 0.003577817531 | AD6: 0.00327966607 | AE6: 0.06171735242 | AF6: 0.02 | AG6: 11.84 | AH6: 148.35307 | AI6: -34.32114 | AT6: Criterion 3. VKT reduction | AU6: > 10% | AV6: > 20% | BG6: 0
A7: Car Driver | B7: =IF($H$4="Multi-unit Residential",VLOOKUP($H$7,$U$2200:$AI$4395,7,FALSE),VLOOKUP($H$7,$U$2:$AG$2197,7,FALSE)) -> 0.1553457411 | C7: 0.1553457411 | D7: 0.1553457411 | G7: SA2 | H7: Sydney - Haymarket - The Rocks | I7: =IF(H7<>H6,"Altered","") ->  | L7: Car Driver | M7: =AR57 -> 257.52 | N7: 257.52 | O7: g CO2-e / vehicle km | P7: =IF(CarEmissionsIntensity<>M7,"Altered","") ->  | T7: 6 | U7: Young Region | V7: New South Wales | W7: 0 | X7: 0.007241129616 | Y7: 0 | Z7: 0 | AA7: 0.7755249819 | AB7: 0.06299782766 | AC7: 0.01086169442 | AD7: 0.005792903693 | AE7: 0.1375814627 | AF7: 0.02 | AG7: 14.23 | AH7: 148.4956 | AI7: -34.3098 | AT7: Criterion 4. Walkable location (Walk Score ®) | AU7: 81 - 90 | AV7: 91 - 100 | BG7: 0
A8: Car Passenger | B8: =IF($H$4="Multi-unit Residential",VLOOKUP($H$7,$U$2200:$AI$4395,8,FALSE),VLOOKUP($H$7,$U$2:$AG$2197,8,FALSE)) -> 0.0306135245 | C8: 0.0306135245 | D8: 0.0306135245 | G8: State | H8: =VLOOKUP(H7,$U$2:$V$2197,2,FALSE) -> New South Wales | L8: Car Passenger | M8: 0 | N8: 0 | O8: g CO2-e / passenger km | T8: 7 | U8: Braidwood | V8: New South Wales | W8: 0 | X8: 0.004862236629 | Y8: 0 | Z8: 0 | AA8: 0.737439222 | AB8: 0.056726094 | AC8: 0.009724473258 | AD8: 0.0113452188 | AE8: 0.1799027553 | AF8: 0.02 | AG8: 29.33 | AH8: 149.79319 | AI8: -35.4551 | AT8: Total | AU8: 7 points | BG8: 0
A9: Motorbike | B9: =IF($H$4="Multi-unit Residential",VLOOKUP($H$7,$U$2200:$AI$4395,9,FALSE),VLOOKUP($H$7,$U$2:$AG$2197,9,FALSE)) -> 0.01096213934 | C9: 0.01096213934 | D9: 0.01096213934 | G9: 100 | H9: Walker's Paradise | L9: Motorbike | M9: =AR58 -> 104.4 | N9: 104.4 | O9: g CO2-e / passenger km | P9: =IF(MotorbikeEmissionsIntensity<>M9,"Altered","") ->  | T9: 8 | U9: Karabar | V9: New South Wales | W9: 0 | X9: 0.005119453925 | Y9: 0 | Z9: 0 | AA9: 0.8395904437 | AB9: 0.07679180887 | AC9: 0.005119453925 | AD9: 0.01365187713 | AE9: 0.05972696246 | AF9: 0.02 | AG9: 11.9 | AH9: 149.2328 | AI9: -35.37595 | AL9: Office | BG9: 0
A10: Bicycle | B10: =IF($H$4="Multi-unit Residential",VLOOKUP($H$7,$U$2200:$AI$4395,10,FALSE),VLOOKUP($H$7,$U$2:$AG$2197,10,FALSE)) -> 0.0169448131 | C10: 0.0169448131 | D10: 0.0169448131 | G10: =(D18/B18-1)*-1 -> 0 | H10: reduction in carbon emissions | I10: Criterion 1 | L10: Bicycle | M10: 0 | N10: 0 | O10: g CO2-e / passenger km | T10: 9 | U10: Queanbeyan | V10: New South Wales | W10: 0 | X10: 0.01138406231 | Y10: 0 | Z10: 0 | AA10: 0.8169562612 | AB10: 0.08478130617 | AC10: 0.008088675854 | AD10: 0.007189934092 | AE10: 0.07159976034 | AF10: 0.02 | AG10: 12.96 | AH10: 149.22545 | AI10: -35.35104 | AL10: Education | BG10: 0
A11: Walk | B11: =IF($H$4="Multi-unit Residential",VLOOKUP($H$7,$U$2200:$AI$4395,11,FALSE),VLOOKUP($H$7,$U$2:$AG$2197,11,FALSE)) -> 0.07745603127 | C11: 0.07745603127 | D11: 0.07745603127 | G11: =IF(G10<0.15,0,IF(G10<0.25,0.5,IF(G10<0.3,1,IF(G10<0.35,1.5,IF(G10<0.4,2,IF(G10<0.45,2.5,3)))))) -> 0 | H11: / 3 points for emissions reduction | L11: Walk | M11: 0 | N11: 0 | O11: g CO2-e / passenger km | T11: 10 | U11: Queanbeyan - East | V11: New South Wales | W11: 0 | X11: 0.004430660168 | Y11: 0 | Z11: 0 | AA11: 0.8808152415 | AB11: 0.07487815685 | AC11: 0.01019051839 | AD11: 0.00841825432 | AE11: 0.02126716881 | AF11: 0.02 | AG11: 15.21 | AH11: 149.25241 | AI11: -35.35517 | AL11: Healthcare | BG11: 0
A12: Total Model Share | B12: =SUM(B3:B11) -> 1 | C12: =SUM(C3:C11) -> 1 | D12: =SUM(D3:D11) -> 1 | G12: =(D20/B20-1) -> 0 | H12: increase in active mode use | I12: Criterion 2 | L12: Total | M12: =SUMPRODUCT(B3:B11,M3:M11) -> 138.1640893 | N12: =SUMPRODUCT(D3:D11,N3:N11) -> 138.1640893 | O12: g CO2-e / passenger km | T12: 11 | U12: Queanbeyan Region | V12: New South Wales | W12: 0 | X12: 0.005976095618 | Y12: 0 | Z12: 0 | AA12: 0.8579017264 | AB12: 0.04448871182 | AC12: 0.008632138114 | AD12: 0.005976095618 | AE12: 0.0770252324 | AF12: 0.02 | AG12: 22.62 | AH12: 149.39112 | AI12: -35.44404 | AL12: Industrial
A13: Avoided trips | B13: =IF($H$4="Multi-unit Residential",VLOOKUP($H$7,$U$2200:$AI$4395,12,FALSE),VLOOKUP($H$7,$U$2:$AG$2197,12,FALSE)) -> 0.02 | C13: 0.02 | D13: =C13 -> 0.02 | E13: % | G13: =IF(G12>=0.5,1,IF(G12>0,0,0)) -> 0 | H13: / 1 point for active mode encouragement | T13: 12 | U13: Queanbeyan West - Jerrabomberra | V13: New South Wales | W13: 0 | X13: 0.003790271636 | Y13: 0 | Z13: 0 | AA13: 0.9033480733 | AB13: 0.06001263424 | AC13: 0.003790271636 | AD13: 0.005685407454 | AE13: 0.02337334176 | AF13: 0.02 | AG13: 14.35 | AH13: 149.20284 | AI13: -35.37758 | AL13: Retail Centre
A14: Ave Trip Length | B14: =IF($H$4="Multi-unit Residential",VLOOKUP($H$7,$U$2200:$AI$4395,13,FALSE),VLOOKUP($H$7,$U$2:$AG$2197,13,FALSE)) -> 18.26 | C14: 18.26 | D14: =C14 -> 18.26 | E14: km | G14: =(D19/B19-1)*-1 -> 0 | H14: reduction in vehicle kilometres travelled | I14: Criterion 3 | T14: 13 | U14: Bombala | V14: New South Wales | W14: 0 | X14: 0 | Y14: 0 | Z14: 0 | AA14: 0.8199718706 | AB14: 0.05907172996 | AC14: 0.01265822785 | AD14: 0.007032348805 | AE14: 0.1012658228 | AF14: 0.02 | AG14: 43.38 | AH14: 149.04547 | AI14: -36.87793 | AL14: Public Building
A15: Work weeks | B15: 48 | C15: 48 | D15: =C15 -> 48 | E15: weeks / annum | G15: =IF(G14>=0.1,1,IF(G14>0.05,0.5,0)) -> 0 | H15: / 1 point for vkt reduction | T15: 14 | U15: Cooma | V15: New South Wales | W15: 0.001160541586 | X15: 0.002707930368 | Y15: 0 | Z15: 0 | AA15: 0.8085106383 | AB15: 0.07543520309 | AC15: 0.006189555126 | AD15: 0.008510638298 | AE15: 0.09748549323 | AF15: 0.02 | AG15: 16.01 | AH15: 149.1194 | AI15: -36.25022 | AL15: Multi-unit Residential
A16: trips per annum | B16: =(1-$B$13)*2*B15*5 -> 470.4 | D16: =(1-$D$13)*2*D15*5 -> 470.4 | E16: trips / annum | G16: =G9 -> 100 | H16: WalkScore ® | I16: Criterion 4 | T16: 15 | U16: Cooma Region | V16: New South Wales | W16: 0 | X16: 0.02222222222 | Y16: 0 | Z16: 0 | AA16: 0.7142857143 | AB16: 0.04761904762 | AC16: 0.009523809524 | AD16: 0 | AE16: 0.2063492063 | AF16: 0.02 | AG16: 13.06 | AH16: 149.08236 | AI16: -36.12724
A17: Emissions per trip | B17: =SUMPRODUCT(B3:B11,Transport!$M$3:$M$11)*B14 -> 2522.876271 | D17: =SUMPRODUCT(D3:D11,Transport!$N$3:$N$11)*D14 -> 2522.876271 | E17: g CO2-e / trip | G17: =IF(G16>90,2,IF(G16>80,1,IF(G16>70,0,0))) -> 2 | H17: / 2 points for walkable location | T17: 16 | U17: Jindabyne - Berridale | V17: New South Wales | W17: 0.007973903588 | X17: 0.01014860457 | Y17: 0 | Z17: 0 | AA17: 0.6038419717 | AB17: 0.1196085538 | AC17: 0.001812250816 | AD17: 0.002537151142 | AE17: 0.2540775643 | AF17: 0.02 | AG17: 37.69 | AH17: 148.60892 | AI17: -36.49168
A18: Total emissions | B18: =B16*B17/1000000 -> 1.186760998 | D18: =D16*D17/1000000 -> 1.186760998 | E18: tonnes / person / annum | G18: =G11+G15+G13+G17 -> 2 | H18: / 7 points achieved | T18: 17 | U18: Batemans Bay | V18: New South Wales | W18: 0 | X18: 0.008098477486 | Y18: 0 | Z18: 0 | AA18: 0.8616780045 | AB18: 0.08001295756 | AC18: 0.007450599287 | AD18: 0.009394233884 | AE18: 0.03336572724 | AF18: 0.02 | AG18: 13.51 | AH18: 150.18175 | AI18: -35.70111
A19: Total vkt | B19: =B16*B7*B14 -> 1334.342864 | D19: =D16*D7*D14 -> 1334.342864 | E19: vkt / person / annum | T19: 18 | U19: Batemans Bay - South | V19: New South Wales | W19: 0 | X19: 0.01123595506 | Y19: 0 | Z19: 0 | AA19: 0.8300561798 | AB19: 0.06320224719 | AC19: 0.00702247191 | AD19: 0.00702247191 | AE19: 0.08146067416 | AF19: 0.02 | AG19: 10.34 | AH19: 150.21063 | AI19: -35.784
A20: Active modes | B20: =SUM(B10:B11) -> 0.09440084437 | D20: =SUM(D10:D11) -> 0.09440084437 | E20: Mode Share % for Active Modes | T20: 19 | U20: Bega - Tathra | V20: New South Wales | W20: 0 | X20: 0.004362050164 | Y20: 0 | Z20: 0 | AA20: 0.8391494002 | AB20: 0.0719738277 | AC20: 0.009814612868 | AD20: 0.008724100327 | AE20: 0.06597600872 | AF20: 0.02 | AG20: 25.47 | AH20: 149.90212 | AI20: -36.72483
T21: 20 | U21: Bega-Eden Hinterland | V21: New South Wales | W21: 0.005532503458 | X21: 0.01244813278 | Y21: 0 | Z21: 0 | AA21: 0.7524204703 | AB21: 0.04011065007 | AC21: 0.03319502075 | AD21: 0 | AE21: 0.1562932227 | AF21: 0.02 | AG21: 13.82 | AH21: 149.71908 | AI21: -36.92886
T22: 21 | U22: Broulee - Tomakin | V22: New South Wales | W22: 0 | X22: 0 | Y22: 0 | Z22: 0 | AA22: 0.776119403 | AB22: 0.07462686567 | AC22: 0.01243781095 | AD22: 0.04975124378 | AE22: 0.08706467662 | AF22: 0.02 | AG22: 11.62 | AH22: 150.16171 | AI22: -35.84598
D23: Reference | I23: Proposed | T23: 22 | U23: Deua - Wadbilliga | V23: New South Wales | W23: 0 | X23: 0 | Y23: 0 | Z23: 0 | AA23: 1 | AB23: 0 | AC23: 0 | AD23: 0 | AE23: 0 | AF23: 0.02 | AG23: 26.35 | AH23: 149.74642 | AI23: -36.17745
T24: 23 | U24: Eden | V24: New South Wales | W24: 0 | X24: 0.01926782274 | Y24: 0 | Z24: 0 | AA24: 0.8092485549 | AB24: 0.08670520231 | AC24: 0.00289017341 | AD24: 0.003853564547 | AE24: 0.07803468208 | AF24: 0.02 | AG24: 15.66 | AH24: 149.89098 | AI24: -37.03134
T25: 24 | U25: Eurobodalla Hinterland | V25: New South Wales | W25: 0 | X25: 0 | Y25: 0 | Z25: 0 | AA25: 0.8012958963 | AB25: 0.0626349892 | AC25: 0 | AD25: 0.01079913607 | AE25: 0.1252699784 | AF25: 0.02 | AG25: 19.61 | AH25: 150.07225 | AI25: -35.77461
T26: 25 | U26: Merimbula - Tura Beach | V26: New South Wales | W26: 0 | X26: 0.006944444444 | Y26: 0 | Z26: 0 | AA26: 0.8402777778 | AB26: 0.0730994152 | AC26: 0.00548245614 | AD26: 0.00548245614 | AE26: 0.06871345029 | AF26: 0.02 | AG26: 13.89 | AH26: 149.88212 | AI26: -36.90017
T27: 26 | U27: Moruya - Tuross Head | V27: New South Wales | W27: 0 | X27: 0.009075194468 | Y27: 0 | Z27: 0 | AA27: 0.8560933449 | AB27: 0.07087294728 | AC27: 0.006914433881 | AD27: 0.01123595506 | AE27: 0.04580812446 | AF27: 0.02 | AG27: 16.96 | AH27: 150.10721 | AI27: -35.94715
T28: 27 | U28: Narooma - Bermagui | V28: New South Wales | W28: 0 | X28: 0.004025301898 | Y28: 0 | Z28: 0 | AA28: 0.8131109833 | AB28: 0.07878090857 | AC28: 0.01265094882 | AD28: 0.005175388154 | AE28: 0.08625646924 | AF28: 0.02 | AG28: 29.48 | AH28: 150.07371 | AI28: -36.31308
T29: 28 | U29: Avoca Beach - Copacabana | V29: New South Wales | W29: 0 | X29: 0 | Y29: 0 | Z29: 0 | AA29: 0.8473282443 | AB29: 0.07824427481 | AC29: 0.007633587786 | AD29: 0.01145038168 | AE29: 0.05534351145 | AF29: 0.02 | AG29: 5.69 | AH29: 151.43018 | AI29: -33.47542
T30: 29 | U30: Box Head - MacMasters Beach | V30: New South Wales | W30: 0.008695652174 | X30: 0.008695652174 | Y30: 0 | Z30: 0 | AA30: 0.8730434783 | AB30: 0.04695652174 | AC30: 0 | AD30: 0.005217391304 | AE30: 0.05739130435 | AF30: 0.02 | AG30: 6.79 | AH30: 151.38475 | AI30: -33.50853
T31: 30 | U31: Calga - Kulnura | V31: New South Wales | W31: 0.00307408546 | X31: 0.005225945281 | Y31: 0 | Z31: 0 | AA31: 0.8739624962 | AB31: 0.05810021519 | AC31: 0.008914847833 | AD31: 0.001844451276 | AE31: 0.04887795881 | AF31: 0.02 | AG31: 36.49 | AH31: 151.17531 | AI31: -33.33968
T32: 31 | U32: Erina - Green Point | V32: New South Wales | W32: 0.003365458161 | X32: 0.03074804956 | Y32: 0 | Z32: 0 | AA32: 0.8638519198 | AB32: 0.07709958697 | AC32: 0.005201162613 | AD32: 0.002447605935 | AE32: 0.01728621692 | AF32: 0.02 | AG32: 12.56 | AH32: 151.4025 | AI32: -33.42325
T33: 32 | U33: Gosford - Springfield | V33: New South Wales | W33: 0.01606975571 | X33: 0.02241118397 | Y33: 0.000360308424 | Z33: 0 | AA33: 0.8604165165 | AB33: 0.06327015926 | AC33: 0.007638538589 | AD33: 0.005476688045 | AE33: 0.02435684946 | AF33: 0.02 | AG33: 16.01 | AH33: 151.34791 | AI33: -33.42525
T34: 33 | U34: Kariong | V34: New South Wales | W34: 0 | X34: 0.008928571429 | Y34: 0 | Z34: 0 | AA34: 0.9209183673 | AB34: 0.04081632653 | AC34: 0.007653061224 | AD34: 0 | AE34: 0.02168367347 | AF34: 0.02 | AG34: 17.25 | AH34: 151.29453 | AI34: -33.43972
T35: 34 | U35: Kincumber - Picketts Valley | V35: New South Wales | W35: 0.002621231979 | X35: 0.01572739187 | Y35: 0 | Z35: 0 | AA35: 0.876146789 | AB35: 0.06684141547 | AC35: 0.004587155963 | AD35: 0.001965923984 | AE35: 0.03211009174 | AF35: 0.02 | AG35: 10.33 | AH35: 151.40312 | AI35: -33.46981
T36: 35 | U36: Narara | V36: New South Wales | W36: 0.01308900524 | X36: 0.01047120419 | Y36: 0 | Z36: 0 | AA36: 0.8952879581 | AB36: 0.05497382199 | AC36: 0.01570680628 | AD36: 0 | AE36: 0.01047120419 | AF36: 0.02 | AG36: 10.45 | AH36: 151.33421 | AI36: -33.3961
T37: 36 | U37: Niagara Park - Lisarow | V37: New South Wales | W37: 0.01092117759 | X37: 0.001899335233 | Y37: 0 | Z37: 0 | AA37: 0.883665717 | AB37: 0.06837606838 | AC37: 0.005698005698 | AD37: 0.004748338082 | AE37: 0.02469135802 | AF37: 0.02 | AG37: 14.48 | AH37: 151.37283 | AI37: -33.38429
T38: 37 | U38: Point Clare - Koolewong | V38: New South Wales | W38: 0.02505694761 | X38: 0.02733485194 | Y38: 0 | Z38: 0 | AA38: 0.854214123 | AB38: 0.04783599089 | AC38: 0 | AD38: 0.006833712984 | AE38: 0.03872437358 | AF38: 0.02 | AG38: 12.08 | AH38: 151.31633 | AI38: -33.44822
T39: 38 | U39: Saratoga - Davistown | V39: New South Wales | W39: 0.009230769231 | X39: 0 | Y39: 0 | Z39: 0 | AA39: 0.9015384615 | AB39: 0.04923076923 | AC39: 0 | AD39: 0 | AE39: 0.04 | AF39: 0.02 | AG39: 7.28 | AH39: 151.35756 | AI39: -33.4775
T40: 39 | U40: Terrigal - North Avoca | V40: New South Wales | W40: 0.003722084367 | X40: 0.01054590571 | Y40: 0 | Z40: 0 | AA40: 0.8573200993 | AB40: 0.07320099256 | AC40: 0.0117866005 | AD40: 0.00682382134 | AE40: 0.03660049628 | AF40: 0.02 | AG40: 9.35 | AH40: 151.42807 | AI40: -33.44504
T41: 40 | U41: Umina - Booker Bay - Patonga | V41: New South Wales | W41: 0.006631927996 | X41: 0.01421127428 | Y41: 0 | Z41: 0 | AA41: 0.8000947418 | AB41: 0.08242539081 | AC41: 0.003789673141 | AD41: 0.01421127428 | AE41: 0.07863571767 | AF41: 0.02 | AG41: 13.69 | AH41: 151.29809 | AI41: -33.52905
T42: 41 | U42: Wamberal - Forresters Beach | V42: New South Wales | W42: 0.004545454545 | X42: 0.01022727273 | Y42: 0 | Z42: 0 | AA42: 0.8818181818 | AB42: 0.06363636364 | AC42: 0.005681818182 | AD42: 0 | AE42: 0.03409090909 | AF42: 0.02 | AG42: 8.19 | AH42: 151.44995 | AI42: -33.40971
T43: 42 | U43: Woy Woy - Blackwall | V43: New South Wales | W43: 0.02561287962 | X43: 0.02451518478 | Y43: 0.002195389682 | Z43: 0 | AA43: 0.8086351994 | AB43: 0.07866813026 | AC43: 0.004390779363 | AD43: 0.01134284669 | AE43: 0.04463959019 | AF43: 0.02 | AG43: 14.76 | AH43: 151.30568 | AI43: -33.48518
T44: 43 | U44: Wyoming | V44: New South Wales | W44: 0.008269720102 | X44: 0.01399491094 | Y44: 0 | Z44: 0 | AA44: 0.8358778626 | AB44: 0.09669211196 | AC44: 0.001908396947 | AD44: 0.001908396947 | AE44: 0.04134860051 | AF44: 0.02 | AG44: 10.94 | AH44: 151.36404 | AI44: -33.40473
T45: 44 | U45: Bateau Bay - Killarney Vale | V45: New South Wales | W45: 0.001587931719 | X45: 0.02461294164 | Y45: 0 | Z45: 0 | AA45: 0.8312822549 | AB45: 0.09130607384 | AC45: 0.006748709805 | AD45: 0.003969829297 | AE45: 0.04049225883 | AF45: 0.02 | AG45: 8.22 | AH45: 151.46745 | AI45: -33.3796
T46: 45 | U46: Blue Haven - San Remo | V46: New South Wales | W46: 0.004932182491 | X46: 0.003699136868 | Y46: 0 | Z46: 0 | AA46: 0.8988902589 | AB46: 0.06781750925 | AC46: 0.004932182491 | AD46: 0 | AE46: 0.01972872996 | AF46: 0.02 | AG46: 14.71 | AH46: 151.52417 | AI46: -33.20406
T47: 46 | U47: Budgewoi - Buff Point - Halekulani | V47: New South Wales | W47: 0 | X47: 0.008818342152 | Y47: 0 | Z47: 0 | AA47: 0.8500881834 | AB47: 0.07407407407 | AC47: 0 | AD47: 0.01410934744 | AE47: 0.05291005291 | AF47: 0.02 | AG47: 8.31 | AH47: 151.58581 | AI47: -33.21715
T48: 47 | U48: Chittaway Bay - Tumbi Umbi | V48: New South Wales | W48: 0.0038507109 | X48: 0.005924170616 | Y48: 0 | Z48: 0 | AA48: 0.8954383886 | AB48: 0.06546208531 | AC48: 0.007109004739 | AD48: 0.005035545024 | AE48: 0.01718009479 | AF48: 0.02 | AG48: 14.47 | AH48: 151.42829 | AI48: -33.3544
T49: 48 | U49: Gorokan - Kanwal - Charmhaven | V49: New South Wales | W49: 0.001430615165 | X49: 0.02253218884 | Y49: 0 | Z49: 0 | AA49: 0.8404864092 | AB49: 0.09656652361 | AC49: 0.004649499285 | AD49: 0.001430615165 | AE49: 0.03290414878 | AF49: 0.02 | AG49: 11.37 | AH49: 151.49475 | AI49: -33.25794
T50: 49 | U50: Jilliby - Yarramalong | V50: New South Wales | W50: 0 | X50: 0 | Y50: 0 | Z50: 0 | AA50: 0.8033707865 | AB50: 0.09550561798 | AC50: 0 | AD50: 0 | AE50: 0.1011235955 | AF50: 0.02 | AG50: 21.5 | AH50: 151.32417 | AI50: -33.17299
T51: 50 | U51: Lake Munmorah - Mannering Park | V51: New South Wales | W51: 0 | X51: 0 | Y51: 0 | Z51: 0 | AA51: 0.8848920863 | AB51: 0.07194244604 | AC51: 0.004496402878 | AD51: 0.003597122302 | AE51: 0.03507194245 | AF51: 0.02 | AG51: 15.44 | AH51: 151.57595 | AI51: -33.18046
T52: 51 | U52: Ourimbah - Fountaindale | V52: New South Wales | W52: 0.01486988848 | X52: 0.002973977695 | Y52: 0 | Z52: 0 | AA52: 0.9078066914 | AB52: 0.04535315985 | AC52: 0.002973977695 | AD52: 0.00594795539 | AE52: 0.02007434944 | AF52: 0.02 | AG52: 22.9 | AH52: 151.33513 | AI52: -33.31652
T53: 52 | U53: Summerland Point - Gwandalan | V53: New South Wales | W53: 0 | X53: 0 | Y53: 0 | Z53: 0 | AA53: 0.8715953307 | AB53: 0.06225680934 | AC53: 0 | AD53: 0 | AE53: 0.06614785992 | AF53: 0.02 | AG53: 9.78 | AH53: 151.5769 | AI53: -33.14098
T54: 53 | U54: The Entrance | V54: New South Wales | W54: 0.002313743637 | X54: 0.02267468764 | Y54: 0 | Z54: 0 | AA54: 0.8431281814 | AB54: 0.06200832948 | AC54: 0.005552984729 | AD54: 0.005090236002 | AE54: 0.05923183711 | AF54: 0.02 | AG54: 10.98 | AH54: 151.49202 | AI54: -33.35763 | AL54: Source: http://www.climatechange.gov.au/sites/climatechange/files/files/climate-change/skmmma-transport-modelling-pdf.pdf
T55: 54 | U55: Toukley - Norah Head | V55: New South Wales | W55: 0 | X55: 0.01114754098 | Y55: 0 | Z55: 0 | AA55: 0.8845901639 | AB55: 0.05836065574 | AC55: 0.00262295082 | AD55: 0.00262295082 | AE55: 0.0406557377 | AF55: 0.02 | AG55: 12.36 | AH55: 151.55459 | AI55: -33.27307
T56: 55 | U56: Tuggerah - Kangy Angy | V56: New South Wales | W56: 0.01318506751 | X56: 0.02303415409 | Y56: 0 | Z56: 0 | AA56: 0.868943606 | AB56: 0.07545671168 | AC56: 0.005718824464 | AD56: 0.002859412232 | AE56: 0.01080222399 | AF56: 0.02 | AG56: 17.47 | AH56: 151.41213 | AI56: -33.30483 | AL56: Mode | AM56: GJ/km | AN56: SKM/MMA | AO56: kg CO2e/GJ | AP56: SKM/MMA | AQ56: Occupancy | AR56: kg C02-e per passenger km
T57: 56 | U57: Warnervale - Wadalba | V57: New South Wales | W57: 0.00253164557 | X57: 0.004781997187 | Y57: 0 | Z57: 0 | AA57: 0.9088607595 | AB57: 0.05907172996 | AC57: 0.006751054852 | AD57: 0.005344585091 | AE57: 0.01265822785 | AF57: 0.02 | AG57: 16.48 | AH57: 151.45815 | AI57: -33.24203 | AL57: Car | AM57: =3.7*10^-3 -> 0.0037 | AN57: Table 6-4 | AO57: 69.6 | AP57: Table 3-3 | AQ57: 1 | AR57: =1000*AM57*AO57/AQ57 -> 257.52
T58: 57 | U58: Wyong | V58: New South Wales | W58: 0.006260956674 | X58: 0.01152016028 | Y58: 0 | Z58: 0 | AA58: 0.8945654896 | AB58: 0.05584773353 | AC58: 0.009266215878 | AD58: 0.00250438267 | AE58: 0.02003506136 | AF58: 0.02 | AG58: 17.91 | AH58: 151.43522 | AI58: -33.27657 | AL58: Motorcycle | AM58: =1.5*10^-3 -> 0.0015 | AN58: Table 6-4 | AO58: 69.6 | AP58: Table 3-3 | AQ58: 1 | AR58: =1000*AM58*AO58/AQ58 -> 104.4
T59: 58 | U59: Bathurst | V59: New South Wales | W59: 0.0005587216449 | X59: 0.006257682423 | Y59: 0.0004469773159 | Z59: 0 | AA59: 0.8286959437 | AB59: 0.08101463851 | AC59: 0.005363727791 | AD59: 0.007263381383 | AE59: 0.07039892725 | AF59: 0.02 | AG59: 9.1 | AH59: 149.55893 | AI59: -33.39912 | AL59: Bus | AM59: =11.3*10^-3 -> 0.0113 | AN59: Table 6-4 | AO59: 69.6 | AP59: Table 3-3 | AQ59: 6 | AR59: 131.08
T60: 59 | U60: Bathurst - East | V60: New South Wales | W60: 0 | X60: 0.002282236592 | Y60: 0 | Z60: 0 | AA60: 0.8988208444 | AB60: 0.05325218714 | AC60: 0.007987828072 | AD60: 0.009889691898 | AE60: 0.02776721187 | AF60: 0.02 | AG60: 9.94 | AH60: 149.62921 | AI60: -33.41523 | AL60: Tram | AM60: =0.52*10^-3 -> 0.00052 | AN60: Table 6-7 | AO60: =VLOOKUP($H$8,$AL$67:$AM$74,2,FALSE) -> 293 | AQ60: 1 | AR60: 152.36
T61: 60 | U61: Bathurst Region | V61: New South Wales | W61: 0 | X61: 0 | Y61: 0 | Z61: 0 | AA61: 0.835492228 | AB61: 0.04922279793 | AC61: 0.01943005181 | AD61: 0 | AE61: 0.09585492228 | AF61: 0.02 | AG61: 10.27 | AH61: 149.53295 | AI61: -33.44045 | AL61: Train | AM61: =0.48*10^-3 -> 0.00048 | AN61: Table 6-7 | AO61: =VLOOKUP($H$8,$AL$67:$AM$74,2,FALSE) -> 293 | AQ61: 1 | AR61: 140.64
T62: 61 | U62: Oberon | V62: New South Wales | W62: 0 | X62: 0.007560137457 | Y62: 0 | Z62: 0 | AA62: 0.824742268 | AB62: 0.0824742268 | AC62: 0.00206185567 | AD62: 0.0116838488 | AE62: 0.07147766323 | AF62: 0.02 | AG62: 40.33 | AH62: 149.77569 | AI62: -33.88803 | AM62: per passenger kilometre
T63: 62 | U63: Condobolin | V63: New South Wales | W63: 0 | X63: 0.01465201465 | Y63: 0 | Z63: 0 | AA63: 0.7734170591 | AB63: 0.07744636316 | AC63: 0.005756148613 | AD63: 0.005232862376 | AE63: 0.1234955521 | AF63: 0.02 | AG63: 57.8 | AH63: 147.03384 | AI63: -32.90812
T64: 63 | U64: Cowra | V64: New South Wales | W64: 0 | X64: 0.00409378489 | Y64: 0 | Z64: 0 | AA64: 0.8388537402 | AB64: 0.08634164496 | AC64: 0.009304056569 | AD64: 0.003721622627 | AE64: 0.05768515073 | AF64: 0.02 | AG64: 9.05 | AH64: 148.66102 | AI64: -33.79105
T65: 64 | U65: Cowra Region | V65: New South Wales | W65: 0 | X65: 0.006607929515 | Y65: 0 | Z65: 0 | AA65: 0.8083700441 | AB65: 0.06057268722 | AC65: 0.008810572687 | AD65: 0.004405286344 | AE65: 0.1112334802 | AF65: 0.02 | AG65: 11 | AH65: 148.68296 | AI65: -33.74024
T66: 65 | U66: Forbes | V66: New South Wales | W66: 0 | X66: 0.006982726939 | Y66: 0 | Z66: 0 | AA66: 0.8250643146 | AB66: 0.07019478133 | AC66: 0.009187798603 | AD66: 0.005880191106 | AE66: 0.08269018743 | AF66: 0.02 | AG66: 28.6 | AH66: 147.92488 | AI66: -33.46158 | AM66: kg CO2e per GJ
T67: 66 | U67: Grenfell | V67: New South Wales | W67: 0 | X67: 0 | Y67: 0 | Z67: 0 | AA67: 0.7834302326 | AB67: 0.05523255814 | AC67: 0.0101744186 | AD67: 0.008720930233 | AE67: 0.1424418605 | AF67: 0.02 | AG67: 34.45 | AH67: 148.02587 | AI67: -33.87923 | AL67: Australian Capital Territory | AM67: 293
T68: 67 | U68: Parkes (NSW) | V68: New South Wales | W68: 0 | X68: 0.003456945317 | Y68: 0 | Z68: 0 | AA68: 0.8243243243 | AB68: 0.08705216845 | AC68: 0.00565681961 | AD68: 0.007542426147 | AE68: 0.07196731615 | AF68: 0.02 | AG68: 21.65 | AH68: 148.18984 | AI68: -33.17293 | AL68: Northern Territory | AM68: 213
T69: 68 | U69: Parkes Region | V69: New South Wales | W69: 0 | X69: 0.01483312732 | Y69: 0 | Z69: 0 | AA69: 0.7676143387 | AB69: 0.08405438813 | AC69: 0.009888751545 | AD69: 0.003708281829 | AE69: 0.1199011125 | AF69: 0.02 | AG69: 25.58 | AH69: 148.0015 | AI69: -32.95372 | AL69: New South Wales | AM69: 293
T70: 69 | U70: West Wyalong | V70: New South Wales | W70: 0 | X70: 0.04327208062 | Y70: 0 | Z70: 0 | AA70: 0.7457024303 | AB70: 0.08417308832 | AC70: 0.006520450504 | AD70: 0.009484291642 | AE70: 0.1108476586 | AF70: 0.02 | AG70: 41.16 | AH70: 146.9843 | AI70: -33.90017 | AL70: Queensland | AM70: 265
T71: 70 | U71: Lithgow | V71: New South Wales | W71: 0.006304176517 | X71: 0.003940110323 | Y71: 0.001576044129 | Z71: 0 | AA71: 0.8500131337 | AB71: 0.07381140005 | AC71: 0.003940110323 | AD71: 0.003677436302 | AE71: 0.05673758865 | AF71: 0.02 | AG71: 20 | AH71: 150.12477 | AI71: -33.47865 | AL71: South Australia | AM71: 202
T72: 71 | U72: Lithgow Region | V72: New South Wales | W72: 0 | X72: 0.00140778977 | Y72: 0 | Z72: 0 | AA72: 0.8779915533 | AB72: 0.0595964336 | AC72: 0.003754106053 | AD72: 0.002346316283 | AE72: 0.05490380103 | AF72: 0.02 | AG72: 23.01 | AH72: 150.05143 | AI72: -33.30743 | AL72: Tasmania | AM72: 61
T73: 72 | U73: Mudgee | V73: New South Wales | W73: 0 | X73: 0.001896505012 | Y73: 0.001354646437 | Z73: 0 | AA73: 0.8279599025 | AB73: 0.08452993769 | AC73: 0.007315090761 | AD73: 0.01029531292 | AE73: 0.06664860471 | AF73: 0.02 | AG73: 18.89 | AH73: 149.60111 | AI73: -32.60398 | AL73: Victoria | AM73: 368
T74: 73 | U74: Mudgee Region - East | V74: New South Wales | W74: 0 | X74: 0.008368200837 | Y74: 0 | Z74: 0 | AA74: 0.8382147838 | AB74: 0.04741980474 | AC74: 0.01255230126 | AD74: 0 | AE74: 0.09344490934 | AF74: 0.02 | AG74: 34.02 | AH74: 150.02822 | AI74: -32.74837 | AL74: Western Australia | AM74: 234
T75: 74 | U75: Mudgee Region - West | V75: New South Wales | W75: 0 | X75: 0.008641382621 | Y75: 0 | Z75: 0 | AA75: 0.7993278925 | AB75: 0.1027364378 | AC75: 0.01200192031 | AD75: 0.001440230437 | AE75: 0.07585213634 | AF75: 0.02 | AG75: 18.84 | AH75: 149.54344 | AI75: -32.40578
T76: 75 | U76: Wollangambe - Wollemi | V76: New South Wales | W76: 0 | X76: 0 | Y76: 0 | Z76: 0 | AA76: 1 | AB76: 0 | AC76: 0 | AD76: 0 | AE76: 0 | AF76: 0.02 | AG76: 58.04 | AH76: 150.38543 | AI76: -33.16052 | AL76: Source: National Greenhouse Accounts (NGA) factors, July 2013
T77: 76 | U77: Blayney | V77: New South Wales | W77: 0 | X77: 0.02117916428 | Y77: 0 | Z77: 0 | AA77: 0.836863194 | AB77: 0.07784773898 | AC77: 0.007441327991 | AD77: 0 | AE77: 0.0566685747 | AF77: 0.02 | AG77: 31.95 | AH77: 149.14387 | AI77: -33.60782
T78: 77 | U78: Orange | V78: New South Wales | W78: 0 | X78: 0.006231823847 | Y78: 0 | Z78: 0 | AA78: 0.8520980474 | AB78: 0.08591607811 | AC78: 0.004819277108 | AD78: 0.006314914832 | AE78: 0.04461985875 | AF78: 0.02 | AG78: 15.11 | AH78: 149.1126 | AI78: -33.30133
T79: 78 | U79: Orange - North | V79: New South Wales | W79: 0 | X79: 0.005291005291 | Y79: 0 | Z79: 0 | AA79: 0.8747795414 | AB79: 0.06349206349 | AC79: 0.005291005291 | AD79: 0.007642563198 | AE79: 0.04350382128 | AF79: 0.02 | AG79: 14.76 | AH79: 149.12597 | AI79: -33.24943
T80: 79 | U80: Orange Region | V80: New South Wales | W80: 0.001124016486 | X80: 0.04533533158 | Y80: 0 | Z80: 0 | AA80: 0.7699512926 | AB80: 0.09591607344 | AC80: 0.01011614837 | AD80: 0.002622705133 | AE80: 0.07493443237 | AF80: 0.02 | AG80: 32.14 | AH80: 148.8476 | AI80: -33.14653 | AL80: bus and ferry are similar
T81: 80 | U81: Grafton | V81: New South Wales | W81: 0.0005301524188 | X81: 0.005036447979 | Y81: 0 | Z81: 0 | AA81: 0.8308813784 | AB81: 0.08098078197 | AC81: 0.01166335321 | AD81: 0.02186878728 | AE81: 0.04903909874 | AF81: 0.02 | AG81: 22.2 | AH81: 152.93549 | AI81: -29.67725 | AL81: DEFRA
T82: 81 | U82: Grafton Region | V82: New South Wales | W82: 0.003968253968 | X82: 0.003968253968 | Y82: 0 | Z82: 0 | AA82: 0.7668650794 | AB82: 0.08630952381 | AC82: 0.009920634921 | AD82: 0.006944444444 | AE82: 0.1220238095 | AF82: 0.02 | AG82: 20.62 | AH82: 152.73794 | AI82: -29.63488 | AL82: http://www.carbonneutralcalculator.com/Carbon%20Offset%20Factors.pdf
T83: 82 | U83: Maclean - Yamba - Iluka | V83: New South Wales | W83: 0.0008457851706 | X83: 0.003383140682 | Y83: 0 | Z83: 0 | AA83: 0.8051874824 | AB83: 0.06935438399 | AC83: 0.006484352974 | AD83: 0.02058077248 | AE83: 0.09416408232 | AF83: 0.02 | AG83: 26.76 | AH83: 153.26625 | AI83: -29.42056
T84: 83 | U84: Bellingen | V84: New South Wales | W84: 0 | X84: 0.01031814273 | Y84: 0 | Z84: 0 | AA84: 0.7626827171 | AB84: 0.07566638005 | AC84: 0.01633705933 | AD84: 0.01375752365 | AE84: 0.1212381771 | AF84: 0.02 | AG84: 25.37 | AH84: 152.71986 | AI84: -30.44795
T85: 84 | U85: Coffs Harbour - North | V85: New South Wales | W85: 0 | X85: 0.005794517495 | Y85: 0 | Z85: 0 | AA85: 0.8303989302 | AB85: 0.09828393136 | AC85: 0.01136616893 | AD85: 0.01359482951 | AE85: 0.04056162246 | AF85: 0.02 | AG85: 12.39 | AH85: 153.10419 | AI85: -30.28214
T86: 85 | U86: Coffs Harbour - South | V86: New South Wales | W86: 0.0003036129946 | X86: 0.005667442567 | Y86: 0 | Z86: 0 | AA86: 0.8665114867 | AB86: 0.0734743447 | AC86: 0.01001922882 | AD86: 0.01447221941 | AE86: 0.02955166481 | AF86: 0.02 | AG86: 13.84 | AH86: 153.09581 | AI86: -30.31515
T87: 86 | U87: Coramba - Nana Glen - Bucca | V87: New South Wales | W87: 0 | X87: 0 | Y87: 0 | Z87: 0 | AA87: 0.8037037037 | AB87: 0.05925925926 | AC87: 0 | AD87: 0 | AE87: 0.137037037 | AF87: 0.02 | AG87: 14.89 | AH87: 153.03287 | AI87: -30.20841
T88: 87 | U88: Dorrigo | V88: New South Wales | W88: 0 | X88: 0.005136986301 | Y88: 0 | Z88: 0 | AA88: 0.7551369863 | AB88: 0.04452054795 | AC88: 0.02397260274 | AD88: 0.01198630137 | AE88: 0.1592465753 | AF88: 0.02 | AG88: 25.08 | AH88: 152.6205 | AI88: -30.21361
T89: 88 | U89: Korora - Emerald Beach | V89: New South Wales | W89: 0 | X89: 0 | Y89: 0 | Z89: 0 | AA89: 0.8583106267 | AB89: 0.06811989101 | AC89: 0 | AD89: 0.005449591281 | AE89: 0.06811989101 | AF89: 0.02 | AG89: 13.96 | AH89: 153.14079 | AI89: -30.20611
T90: 89 | U90: Sawtell - Boambee | V90: New South Wales | W90: 0 | X90: 0.005354752343 | Y90: 0 | Z90: 0 | AA90: 0.813253012 | AB90: 0.08366800535 | AC90: 0.01840696118 | AD90: 0.01238286479 | AE90: 0.06693440428 | AF90: 0.02 | AG90: 11.49 | AH90: 153.03708 | AI90: -30.37613
T91: 90 | U91: Urunga | V91: New South Wales | W91: 0 | X91: 0.004622496148 | Y91: 0 | Z91: 0 | AA91: 0.8043143297 | AB91: 0.06933744222 | AC91: 0.01540832049 | AD91: 0.01078582435 | AE91: 0.09553158706 | AF91: 0.02 | AG91: 17.42 | AH91: 152.99909 | AI91: -30.48978
T92: 91 | U92: Woolgoolga - Arrawarra | V92: New South Wales | W92: 0 | X92: 0.005136986301 | Y92: 0 | Z92: 0 | AA92: 0.7882420091 | AB92: 0.1101598174 | AC92: 0.006278538813 | AD92: 0.009703196347 | AE92: 0.08047945205 | AF92: 0.02 | AG92: 18.37 | AH92: 153.16687 | AI92: -30.02775
T93: 92 | U93: Bourke - Brewarrina | V93: New South Wales | W93: 0 | X93: 0.01098901099 | Y93: 0 | Z93: 0 | AA93: 0.6279434851 | AB93: 0.09419152276 | AC93: 0.009419152276 | AD93: 0.01334379906 | AE93: 0.2441130298 | AF93: 0.02 | AG93: ? | AH93: 145.74643 | AI93: -29.91238
T94: 93 | U94: Cobar | V94: New South Wales | W94: 0.002329644729 | X94: 0.0262085032 | Y94: 0 | Z94: 0 | AA94: 0.7518928363 | AB94: 0.09143855562 | AC94: 0.009318578917 | AD94: 0.009318578917 | AE94: 0.1094933023 | AF94: 0.02 | AG94: 99.54 | AH94: 145.48478 | AI94: -31.87602
T95: 94 | U95: Coonamble | V95: New South Wales | W95: 0 | X95: 0.003700277521 | Y95: 0 | Z95: 0 | AA95: 0.7807585569 | AB95: 0.08973172988 | AC95: 0.01480111008 | AD95: 0 | AE95: 0.1110083256 | AF95: 0.02 | AG95: 51.12 | AH95: 148.22403 | AI95: -30.97966
T96: 95 | U96: Nyngan - Warren | V96: New South Wales | W96: 0 | X96: 0.05362982341 | Y96: 0 | Z96: 0 | AA96: 0.7305428385 | AB96: 0.0765206017 | AC96: 0.008502289078 | AD96: 0.009810333551 | AE96: 0.1209941138 | AF96: 0.02 | AG96: 65.75 | AH96: 147.08067 | AI96: -31.45049
T97: 96 | U97: Walgett - Lightning Ridge | V97: New South Wales | W97: 0 | X97: 0.00184501845 | Y97: 0.0049200492 | Z97: 0 | AA97: 0.6808118081 | AB97: 0.07441574416 | AC97: 0.01168511685 | AD97: 0.008610086101 | AE97: 0.2177121771 | AF97: 0.02 | AG97: 91.59 | AH97: 148.06618 | AI97: -29.76469
T98: 97 | U98: Broken Hill | V98: New South Wales | W98: 0 | X98: 0.003450920245 | Y98: 0.0009585889571 | Z98: 0 | AA98: 0.8197852761 | AB98: 0.08435582822 | AC98: 0.009777607362 | AD98: 0.01054447853 | AE98: 0.07112730061 | AF98: 0.02 | AG98: ? | AH98: 141.47917 | AI98: -31.94418
T99: 98 | U99: Far West | V99: New South Wales | W99: 0 | X99: 0.003931847969 | Y99: 0 | Z99: 0 | AA99: 0.5242463958 | AB99: 0.1087811271 | AC99: 0.02359108781 | AD99: 0.01572739187 | AE99: 0.3237221494 | AF99: 0.02 | AG99: ? | AH99: 142.7189 | AI99: -31.09403
T100: 99 | U100: Coonabarabran | V100: New South Wales | W100: 0 | X100: 0.004961411246 | Y100: 0 | Z100: 0 | AA100: 0.7442116869 | AB100: 0.07662624035 | AC100: 0.01984564498 | AD100: 0.003307607497 | AE100: 0.151047409 | AF100: 0.02 | AG100: 51.67 | AH100: 149.40737 | AI100: -31.35512
T101: 100 | U101: Dubbo - East | V101: New South Wales | W101: 0 | X101: 0.001416430595 | Y101: 0 | Z101: 0 | AA101: 0.870295427 | AB101: 0.08255766896 | AC101: 0.007689194658 | AD101: 0.008093889114 | AE101: 0.02994738972 | AF101: 0.02 | AG101: 14.27 | AH101: 148.67083 | AI101: -32.24735
T102: 101 | U102: Dubbo - South | V102: New South Wales | W102: 0.0004048036702 | X102: 0.006072055053 | Y102: 0 | Z102: 0 | AA102: 0.8338955607 | AB102: 0.1005262448 | AC102: 0.006476858724 | AD102: 0.007421400621 | AE102: 0.04520307651 | AF102: 0.02 | AG102: 11.88 | AH102: 148.62855 | AI102: -32.26714
T103: 102 | U103: Dubbo - West | V103: New South Wales | W103: 0 | X103: 0.005925925926 | Y103: 0 | Z103: 0 | AA103: 0.8407407407 | AB103: 0.08592592593 | AC103: 0.008148148148 | AD103: 0.007407407407 | AE103: 0.05185185185 | AF103: 0.02 | AG103: 12 | AH103: 148.58087 | AI103: -32.2329
T104: 103 | U104: Dubbo Region | V104: New South Wales | W104: 0 | X104: 0.005780346821 | Y104: 0 | Z104: 0 | AA104: 0.7938342967 | AB104: 0.06358381503 | AC104: 0.03082851638 | AD104: 0.005780346821 | AE104: 0.1001926782 | AF104: 0.02 | AG104: 23.71 | AH104: 148.71025 | AI104: -32.06551
T105: 104 | U105: Gilgandra | V105: New South Wales | W105: 0 | X105: 0.006986027944 | Y105: 0.00499001996 | Z105: 0 | AA105: 0.7944111776 | AB105: 0.06387225549 | AC105: 0.01397205589 | AD105: 0.005988023952 | AE105: 0.1097804391 | AF105: 0.02 | AG105: 33.11 | AH105: 148.6426 | AI105: -31.6185
T106: 105 | U106: Narromine | V106: New South Wales | W106: 0 | X106: 0.004092769441 | Y106: 0 | Z106: 0 | AA106: 0.806957708 | AB106: 0.05934515689 | AC106: 0.0102319236 | AD106: 0.006139154161 | AE106: 0.1132332879 | AF106: 0.02 | AG106: 31.81 | AH106: 148.05324 | AI106: -32.18115
T107: 106 | U107: Wellington | V107: New South Wales | W107: 0.002412545235 | X107: 0.002412545235 | Y107: 0 | Z107: 0 | AA107: 0.7798552473 | AB107: 0.08685162847 | AC107: 0.008443908323 | AD107: 0.006031363088 | AE107: 0.1139927624 | AF107: 0.02 | AG107: 35.85 | AH107: 148.96382 | AI107: -32.65161
T108: 107 | U108: Branxton - Greta - Pokolbin | V108: New South Wales | W108: 0.00193723363 | X108: 0.001162340178 | Y108: 0 | Z108: 0 | AA108: 0.8872530027 | AB108: 0.06547849671 | AC108: 0.005424254165 | AD108: 0.001162340178 | AE108: 0.03758233243 | AF108: 0.02 | AG108: 22.12 | AH108: 151.32551 | AI108: -32.70988
T109: 108 | U109: Cessnock | V109: New South Wales | W109: 0 | X109: 0.004918399285 | Y109: 0 | Z109: 0 | AA109: 0.8535658395 | AB109: 0.08361278784 | AC109: 0.007601162531 | AD109: 0.007154035323 | AE109: 0.04314777554 | AF109: 0.02 | AG109: 18.35 | AH109: 151.36208 | AI109: -32.83196
T110: 109 | U110: Cessnock Region | V110: New South Wales | W110: 0 | X110: 0.003591954023 | Y110: 0 | Z110: 0 | AA110: 0.9001436782 | AB110: 0.04238505747 | AC110: 0.008620689655 | AD110: 0 | AE110: 0.04525862069 | AF110: 0.02 | AG110: 45.07 | AH110: 151.18905 | AI110: -32.96272
T111: 110 | U111: Dungog | V111: New South Wales | W111: 0.005852231163 | X111: 0.005120702268 | Y111: 0 | Z111: 0 | AA111: 0.8002926116 | AB111: 0.06437454279 | AC111: 0.0160936357 | AD111: 0.007315288954 | AE111: 0.1009509876 | AF111: 0.02 | AG111: 31.24 | AH111: 151.60828 | AI111: -32.34948
T112: 111 | U112: Kurri Kurri - Abermain | V112: New South Wales | W112: 0.00195376099 | X112: 0.00390752198 | Y112: 0 | Z112: 0 | AA112: 0.8681211332 | AB112: 0.07945294692 | AC112: 0.007489417128 | AD112: 0.003581895148 | AE112: 0.03549332465 | AF112: 0.02 | AG112: 18.91 | AH112: 151.46112 | AI112: -32.80068
T113: 112 | U113: Singleton | V113: New South Wales | W113: 0 | X113: 0.002825357584 | Y113: 0 | Z113: 0 | AA113: 0.8472541056 | AB113: 0.0810524457 | AC113: 0.006886809112 | AD113: 0.004591206075 | AE113: 0.05739007593 | AF113: 0.02 | AG113: 25.1 | AH113: 151.17729 | AI113: -32.57524
T114: 113 | U114: Singleton Region | V114: New South Wales | W114: 0 | X114: 0.0007224128589 | Y114: 0 | Z114: 0 | AA114: 0.8887484197 | AB114: 0.08939859129 | AC114: 0.008127144663 | AD114: 0.0007224128589 | AE114: 0.0122810186 | AF114: 0.02 | AG114: 46.23 | AH114: 151.01009 | AI114: -32.62944
T115: 114 | U115: Maitland | V115: New South Wales | W115: 0.01270289344 | X115: 0.008233356857 | Y115: 0 | Z115: 0 | AA115: 0.8915549283 | AB115: 0.05128205128 | AC115: 0.005175252882 | AD115: 0.007292401788 | AE115: 0.0237591155 | AF115: 0.02 | AG115: 21.35 | AH115: 151.53881 | AI115: -32.76008
T116: 115 | U116: Maitland - East | V116: New South Wales | W116: 0.007057028419 | X116: 0.007057028419 | Y116: 0 | Z116: 0 | AA116: 0.866297921 | AB116: 0.07762731261 | AC116: 0.005149723441 | AD116: 0.003814609956 | AE116: 0.03299637612 | AF116: 0.02 | AG116: 15.95 | AH116: 151.60047 | AI116: -32.75432
T117: 116 | U117: Maitland - North | V117: New South Wales | W117: 0.008474576271 | X117: 0.008474576271 | Y117: 0 | Z117: 0 | AA117: 0.8644067797 | AB117: 0.05720338983 | AC117: 0 | AD117: 0.008474576271 | AE117: 0.05296610169 | AF117: 0.02 | AG117: 15.25 | AH117: 151.57904 | AI117: -32.67706
T118: 117 | U118: Maitland - West | V118: New South Wales | W118: 0.005966587112 | X118: 0.006165473349 | Y118: 0 | Z118: 0 | AA118: 0.8745027844 | AB118: 0.07796340493 | AC118: 0.006961018298 | AD118: 0.003182179793 | AE118: 0.02525855211 | AF118: 0.02 | AG118: 22.22 | AH118: 151.48361 | AI118: -32.68469
T119: 118 | U119: Thornton - Millers Forest | V119: New South Wales | W119: 0.01029320025 | X119: 0.002183406114 | Y119: 0 | Z119: 0 | AA119: 0.9001871491 | AB119: 0.05676855895 | AC119: 0.01029320025 | AD119: 0.004366812227 | AE119: 0.01590767311 | AF119: 0.02 | AG119: 21.62 | AH119: 151.67071 | AI119: -32.76312
T120: 119 | U120: Anna Bay | V120: New South Wales | W120: 0 | X120: 0.01593625498 | Y120: 0 | Z120: 0 | AA120: 0.7709163347 | AB120: 0.07768924303 | AC120: 0 | AD120: 0.01992031873 | AE120: 0.1155378486 | AF120: 0.02 | AG120: 10.36 | AH120: 152.03963 | AI120: -32.77363
T121: 120 | U121: Lemon Tree Passage - Tanilba Bay | V121: New South Wales | W121: 0 | X121: 0.006109979633 | Y121: 0 | Z121: 0 | AA121: 0.849287169 | AB121: 0.0549898167 | AC121: 0 | AD121: 0.02036659878 | AE121: 0.06924643585 | AF121: 0.02 | AG121: 18.05 | AH121: 152.00198 | AI121: -32.74426
T122: 121 | U122: Nelson Bay Peninsula | V122: New South Wales | W122: 0.001146526026 | X122: 0.01238248108 | Y122: 0 | Z122: 0 | AA122: 0.8321485898 | AB122: 0.08025682183 | AC122: 0.005732630131 | AD122: 0.008484292593 | AE122: 0.05984865856 | AF122: 0.02 | AG122: 12.19 | AH122: 152.12666 | AI122: -32.73652
T123: 122 | U123: Raymond Terrace | V123: New South Wales | W123: 0.000502323245 | X123: 0.005525555695 | Y123: 0 | Z123: 0 | AA123: 0.8966469923 | AB123: 0.07183222404 | AC123: 0.009669722466 | AD123: 0.003139520281 | AE123: 0.01268366194 | AF123: 0.02 | AG123: 24.69 | AH123: 151.75664 | AI123: -32.7704
T124: 123 | U124: Seaham - Woodville | V124: New South Wales | W124: 0.009411764706 | X124: 0 | Y124: 0 | Z124: 0 | AA124: 0.8588235294 | AB124: 0.05411764706 | AC124: 0.009411764706 | AD124: 0.007058823529 | AE124: 0.06117647059 | AF124: 0.02 | AG124: 18.89 | AH124: 151.70727 | AI124: -32.65925
T125: 124 | U125: Tea Gardens - Hawks Nest | V125: New South Wales | W125: 0.004316546763 | X125: 0.004316546763 | Y125: 0 | Z125: 0 | AA125: 0.7942446043 | AB125: 0.06330935252 | AC125: 0.005755395683 | AD125: 0.01726618705 | AE125: 0.1107913669 | AF125: 0.02 | AG125: 26.49 | AH125: 152.12697 | AI125: -32.62784
T126: 125 | U126: Williamtown - Medowie - Karuah | V126: New South Wales | W126: 0.0006395224899 | X126: 0.003410786613 | Y126: 0 | Z126: 0 | AA126: 0.8610104455 | AB126: 0.05819654658 | AC126: 0.02131741633 | AD126: 0.01342997229 | AE126: 0.04199531017 | AF126: 0.02 | AG126: 27.1 | AH126: 151.89324 | AI126: -32.71714
T127: 126 | U127: Muswellbrook | V127: New South Wales | W127: 0.0006591957811 | X127: 0.002636783125 | Y127: 0.0009887936717 | Z127: 0 | AA127: 0.8699736322 | AB127: 0.08899143045 | AC127: 0.006591957811 | AD127: 0.001153592617 | AE127: 0.02900461437 | AF127: 0.02 | AG127: 35.32 | AH127: 150.90826 | AI127: -32.31408
T128: 127 | U128: Muswellbrook Region | V128: New South Wales | W128: 0.00296956199 | X128: 0.007423904974 | Y128: 0 | Z128: 0 | AA128: 0.7995545657 | AB128: 0.07943578322 | AC128: 0.0274684484 | AD128: 0.002227171492 | AE128: 0.08092056422 | AF128: 0.02 | AG128: 38.95 | AH128: 150.60711 | AI128: -32.45039
T129: 128 | U129: Scone | V129: New South Wales | W129: 0.002080083203 | X129: 0.003120124805 | Y129: 0 | Z129: 0 | AA129: 0.8091523661 | AB129: 0.08216328653 | AC129: 0.008840353614 | AD129: 0.003120124805 | AE129: 0.09152366095 | AF129: 0.02 | AG129: 13.96 | AH129: 150.85799 | AI129: -32.05019
T130: 129 | U130: Scone Region | V130: New South Wales | W130: 0.007518796992 | X130: 0.008885850991 | Y130: 0 | Z130: 0 | AA130: 0.7429938483 | AB130: 0.06151742994 | AC130: 0.01640464798 | AD130: 0.004784688995 | AE130: 0.1578947368 | AF130: 0.02 | AG130: 13.99 | AH130: 150.7278 | AI130: -31.96709
T131: 130 | U131: Berkeley - Warrawong - Windang | V131: New South Wales | W131: 0.007572889057 | X131: 0.01609238925 | Y131: 0 | Z131: 0 | AA131: 0.8523286634 | AB131: 0.08159787959 | AC131: 0.007383566831 | AD131: 0.006436955699 | AE131: 0.02858765619 | AF131: 0.02 | AG131: 14.31 | AH131: 150.86692 | AI131: -34.4888
T132: 131 | U132: Dapto - Avondale | V132: New South Wales | W132: 0.008081412751 | X132: 0.01197246333 | Y132: 0 | Z132: 0 | AA132: 0.8593235558 | AB132: 0.08081412751 | AC132: 0.004190362167 | AD132: 0.005686920084 | AE132: 0.02993115834 | AF132: 0.02 | AG132: 12.08 | AH132: 150.76647 | AI132: -34.52256
T133: 132 | U133: Horsley - Kembla Grange | V133: New South Wales | W133: 0 | X133: 0 | Y133: 0 | Z133: 0 | AA133: 0.9282371295 | AB133: 0.03900156006 | AC133: 0.01404056162 | AD133: 0 | AE133: 0.01872074883 | AF133: 0.02 | AG133: 14.93 | AH133: 150.76418 | AI133: -34.47748
T134: 133 | U134: Port Kembla Industrial | V134: New South Wales | W134: 0.006471925835 | X134: 0.003848172118 | Y134: 0 | Z134: 0 | AA134: 0.9256603114 | AB134: 0.02938604163 | AC134: 0.01364351933 | AD134: 0.0169669407 | AE134: 0.004023089033 | AF134: 0.02 | AG134: 15.34 | AH134: 150.88538 | AI134: -34.46097
T135: 134 | U135: Unanderra - Mount Kembla | V135: New South Wales | W135: 0.006945428774 | X135: 0.01133947555 | Y135: 0 | Z135: 0 | AA135: 0.8885896527 | AB135: 0.06435152374 | AC135: 0.01034727144 | AD135: 0.006236711552 | AE135: 0.01218993622 | AF135: 0.02 | AG135: 15.53 | AH135: 150.8241 | AI135: -34.44194
T136: 135 | U136: Illawarra Catchment Reserve | V136: New South Wales | W136: 0 | X136: 0 | Y136: 0 | Z136: 0 | AA136: 1 | AB136: 0 | AC136: 0 | AD136: 0 | AE136: 0 | AF136: 0.02 | AG136: 36.34 | AH136: 150.71546 | AI136: -34.36945
T137: 136 | U137: Albion Park - Macquarie Pass | V137: New South Wales | W137: 0.003590664273 | X137: 0.01077199282 | Y137: 0 | Z137: 0 | AA137: 0.8581687612 | AB137: 0.07600239378 | AC137: 0.007181328546 | AD137: 0.004787552364 | AE137: 0.039497307 | AF137: 0.02 | AG137: 13.98 | AH137: 150.71906 | AI137: -34.5769
T138: 137 | U138: Albion Park Rail | V138: New South Wales | W138: 0.006684491979 | X138: 0.006016042781 | Y138: 0.005347593583 | Z138: 0 | AA138: 0.8569518717 | AB138: 0.08689839572 | AC138: 0.002673796791 | AD138: 0.01069518717 | AE138: 0.02473262032 | AF138: 0.02 | AG138: 11.99 | AH138: 150.79493 | AI138: -34.56188
T139: 138 | U139: Kiama | V139: New South Wales | W139: 0.01197916667 | X139: 0.003125 | Y139: 0 | Z139: 0 | AA139: 0.8411458333 | AB139: 0.07916666667 | AC139: 0.005729166667 | AD139: 0.002083333333 | AE139: 0.05677083333 | AF139: 0.02 | AG139: 11.42 | AH139: 150.84346 | AI139: -34.6818
T140: 139 | U140: Kiama Downs - Minnamurra | V140: New South Wales | W140: 0 | X140: 0 | Y140: 0 | Z140: 0 | AA140: 0.8343558282 | AB140: 0.07975460123 | AC140: 0.01840490798 | AD140: 0 | AE140: 0.06748466258 | AF140: 0.02 | AG140: 6.84 | AH140: 150.84898 | AI140: -34.63959
T141: 140 | U141: Kiama Hinterland - Gerringong | V141: New South Wales | W141: 0.003600360036 | X141: 0 | Y141: 0 | Z141: 0 | AA141: 0.800180018 | AB141: 0.07650765077 | AC141: 0.009900990099 | AD141: 0.004500450045 | AE141: 0.1053105311 | AF141: 0.02 | AG141: 12.86 | AH141: 150.75415 | AI141: -34.68909
T142: 141 | U142: Shellharbour - Flinders | V142: New South Wales | W142: 0.005759539237 | X142: 0.007919366451 | Y142: 0 | Z142: 0 | AA142: 0.8567314615 | AB142: 0.06551475882 | AC142: 0.00935925126 | AD142: 0.007919366451 | AE142: 0.0467962563 | AF142: 0.02 | AG142: 11.46 | AH142: 150.83192 | AI142: -34.60213
T143: 142 | U143: Shellharbour - Oak Flats | V143: New South Wales | W143: 0.00374732334 | X143: 0.008029978587 | Y143: 0 | Z143: 0.001338329764 | AA143: 0.8535867238 | AB143: 0.08565310493 | AC143: 0.006959314775 | AD143: 0.008565310493 | AE143: 0.03211991435 | AF143: 0.02 | AG143: 12.05 | AH143: 150.82654 | AI143: -34.56483
T144: 143 | U144: Warilla | V144: New South Wales | W144: 0.002450122506 | X144: 0.009800490025 | Y144: 0 | Z144: 0 | AA144: 0.8624431222 | AB144: 0.08330416521 | AC144: 0.003500175009 | AD144: 0.004900245012 | AE144: 0.03360168008 | AF144: 0.02 | AG144: 10.32 | AH144: 150.85423 | AI144: -34.55484
T145: 144 | U145: Balgownie - Fairy Meadow | V145: New South Wales | W145: 0.007078350012 | X145: 0.01732975348 | Y145: 0.001464486209 | Z145: 0 | AA145: 0.8386624359 | AB145: 0.0776177691 | AC145: 0.007078350012 | AD145: 0.0104954845 | AE145: 0.04027337076 | AF145: 0.02 | AG145: 10.92 | AH145: 150.88522 | AI145: -34.39173
T146: 145 | U146: Corrimal - Tarrawanna - Bellambi | V146: New South Wales | W146: 0.01143099069 | X146: 0.01397121084 | Y146: 0 | Z146: 0 | AA146: 0.8268416596 | AB146: 0.07070279424 | AC146: 0.008890770533 | AD146: 0.008890770533 | AE146: 0.05927180356 | AF146: 0.02 | AG146: 9.46 | AH146: 150.89715 | AI146: -34.37087
T147: 146 | U147: Figtree - Keiraville | V147: New South Wales | W147: 0.01344301766 | X147: 0.0503611557 | Y147: 0 | Z147: 0 | AA147: 0.7654494382 | AB147: 0.08607544141 | AC147: 0.008828250401 | AD147: 0.022070626 | AE147: 0.05377207063 | AF147: 0.02 | AG147: 12.36 | AH147: 150.85461 | AI147: -34.4192
T148: 147 | U148: Helensburgh | V148: New South Wales | W148: 0.01448040886 | X148: 0.004258943782 | Y148: 0 | Z148: 0 | AA148: 0.8339011925 | AB148: 0.066439523 | AC148: 0.00936967632 | AD148: 0.006814310051 | AE148: 0.06473594549 | AF148: 0.02 | AG148: 22 | AH148: 150.95321 | AI148: -34.18648
T149: 148 | U149: Thirroul - Austinmer - Coalcliff | V149: New South Wales | W149: 0.02551724138 | X149: 0.01586206897 | Y149: 0 | Z149: 0 | AA149: 0.7931034483 | AB149: 0.07034482759 | AC149: 0.008275862069 | AD149: 0.01034482759 | AE149: 0.07655172414 | AF149: 0.02 | AG149: 11.1 | AH149: 150.93805 | AI149: -34.28909
T150: 149 | U150: Wollongong | V150: New South Wales | W150: 0.01614169365 | X150: 0.02767147483 | Y150: 0 | Z150: 0.0003434402905 | AA150: 0.8170935139 | AB150: 0.0684427436 | AC150: 0.007015994505 | AD150: 0.009027573349 | AE150: 0.05426356589 | AF150: 0.02 | AG150: 13.83 | AH150: 150.88703 | AI150: -34.42703
T151: 150 | U151: Woonona - Bulli - Russell Vale | V151: New South Wales | W151: 0.0112 | X151: 0.0188 | Y151: 0 | Z151: 0 | AA151: 0.8428 | AB151: 0.0644 | AC151: 0.0048 | AD151: 0.0132 | AE151: 0.0448 | AF151: 0.02 | AG151: 10.43 | AH151: 150.90383 | AI151: -34.34063
T152: 151 | U152: Bulahdelah - Stroud | V152: New South Wales | W152: 0 | X152: 0.01578458682 | Y152: 0 | Z152: 0 | AA152: 0.7864438254 | AB152: 0.08077994429 | AC152: 0.008356545961 | AD152: 0.004642525534 | AE152: 0.103992572 | AF152: 0.02 | AG152: 36.27 | AH152: 152.07074 | AI152: -32.36507
T153: 152 | U153: Forster | V153: New South Wales | W153: 0 | X153: 0.00500770416 | Y153: 0 | Z153: 0 | AA153: 0.8228043143 | AB153: 0.09129429892 | AC153: 0.007704160247 | AD153: 0.01771956857 | AE153: 0.05546995378 | AF153: 0.02 | AG153: 14.99 | AH153: 152.53197 | AI153: -32.22128
T154: 153 | U154: Forster-Tuncurry Region | V154: New South Wales | W154: 0 | X154: 0.006722689076 | Y154: 0 | Z154: 0 | AA154: 0.7596638655 | AB154: 0.1092436975 | AC154: 0.006722689076 | AD154: 0.008403361345 | AE154: 0.1092436975 | AF154: 0.02 | AG154: 27.77 | AH154: 152.40331 | AI154: -32.25058
T155: 154 | U155: Tuncurry | V155: New South Wales | W155: 0 | X155: 0.005035246727 | Y155: 0 | Z155: 0 | AA155: 0.8318227593 | AB155: 0.0720040282 | AC155: 0.006042296073 | AD155: 0.01812688822 | AE155: 0.06696878147 | AF155: 0.02 | AG155: 17.42 | AH155: 152.4856 | AI155: -32.16067
T156: 155 | U156: Kempsey | V156: New South Wales | W156: 0.0005928853755 | X156: 0.007509881423 | Y156: 0 | Z156: 0 | AA156: 0.8705533597 | AB156: 0.08023715415 | AC156: 0.005533596838 | AD156: 0.006126482213 | AE156: 0.02944664032 | AF156: 0.02 | AG156: 27.8 | AH156: 152.82858 | AI156: -31.08144
T157: 156 | U157: Kempsey Region | V157: New South Wales | W157: 0 | X157: 0 | Y157: 0 | Z157: 0 | AA157: 0.7511261261 | AB157: 0.0518018018 | AC157: 0.01689189189 | AD157: 0.02027027027 | AE157: 0.1599099099 | AF157: 0.02 | AG157: 26.78 | AH157: 152.57753 | AI157: -30.91963
T158: 157 | U158: Macksville - Scotts Head | V158: New South Wales | W158: 0 | X158: 0.002472187886 | Y158: 0 | Z158: 0 | AA158: 0.8553770087 | AB158: 0.07478368356 | AC158: 0.009270704574 | AD158: 0.00803461063 | AE158: 0.0500618047 | AF158: 0.02 | AG158: 22.27 | AH158: 152.95357 | AI158: -30.72097
T159: 158 | U159: Nambucca Heads | V159: New South Wales | W159: 0 | X159: 0.004319654428 | Y159: 0 | Z159: 0 | AA159: 0.845212383 | AB159: 0.07343412527 | AC159: 0.005759539237 | AD159: 0.004319654428 | AE159: 0.06695464363 | AF159: 0.02 | AG159: 19.25 | AH159: 152.98498 | AI159: -30.64567
T160: 159 | U160: Nambucca Heads Region | V160: New South Wales | W160: 0 | X160: 0.0314232902 | Y160: 0 | Z160: 0 | AA160: 0.7060998152 | AB160: 0.06839186691 | AC160: 0.01663585952 | AD160: 0.01478743068 | AE160: 0.1626617375 | AF160: 0.02 | AG160: 19.82 | AH160: 152.75966 | AI160: -30.68912
T161: 160 | U161: South West Rocks | V161: New South Wales | W161: 0 | X161: 0.004219409283 | Y161: 0 | Z161: 0 | AA161: 0.7580872011 | AB161: 0.07876230661 | AC161: 0.01406469761 | AD161: 0.01828410689 | AE161: 0.1265822785 | AF161: 0.02 | AG161: 23.46 | AH161: 153.04935 | AI161: -30.91446
T162: 161 | U162: Lord Howe Island | V162: New South Wales | W162: 0 | X162: 0 | Y162: 0 | Z162: 0 | AA162: 0.2532467532 | AB162: 0.03896103896 | AC162: 0.06493506494 | AD162: 0.2272727273 | AE162: 0.4155844156 | AF162: 0.02 | AG162: ? | AH162: 159.07681 | AI162: -31.55255
T163: 162 | U163: Laurieton - Bonny Hills | V163: New South Wales | W163: 0 | X163: 0.00354969574 | Y163: 0 | Z163: 0 | AA163: 0.8250507099 | AB163: 0.0775862069 | AC163: 0.007606490872 | AD163: 0.009127789047 | AE163: 0.07707910751 | AF163: 0.02 | AG163: 18.32 | AH163: 152.69327 | AI163: -31.61863
T164: 163 | U164: Port Macquarie - East | V164: New South Wales | W164: 0.0008470269355 | X164: 0.006437404709 | Y164: 0 | Z164: 0 | AA164: 0.8327968829 | AB164: 0.09164831442 | AC164: 0.009147890903 | AD164: 0.006437404709 | AE164: 0.05268507539 | AF164: 0.02 | AG164: 13.75 | AH164: 152.89872 | AI164: -31.47884
T165: 164 | U165: Port Macquarie - West | V165: New South Wales | W165: 0 | X165: 0.004125515689 | Y165: 0 | Z165: 0 | AA165: 0.8692336542 | AB165: 0.07013376672 | AC165: 0.01550193774 | AD165: 0.008501062633 | AE165: 0.03250406301 | AF165: 0.02 | AG165: 16.61 | AH165: 152.86044 | AI165: -31.43789
T166: 165 | U166: Port Macquarie Region | V166: New South Wales | W166: 0.02559414991 | X166: 0 | Y166: 0 | Z166: 0 | AA166: 0.7568555759 | AB166: 0.06398537477 | AC166: 0.02193784278 | AD166: 0 | AE166: 0.1316270567 | AF166: 0.02 | AG166: 25.86 | AH166: 152.47387 | AI166: -31.36649
T167: 166 | U167: Wauchope | V167: New South Wales | W167: 0.002352941176 | X167: 0.001411764706 | Y167: 0 | Z167: 0 | AA167: 0.8748235294 | AB167: 0.05882352941 | AC167: 0.009411764706 | AD167: 0.004235294118 | AE167: 0.04894117647 | AF167: 0.02 | AG167: 16.19 | AH167: 152.76838 | AI167: -31.46765
T168: 167 | U168: Gloucester | V168: New South Wales | W168: 0 | X168: 0.004501125281 | Y168: 0 | Z168: 0 | AA168: 0.8109527382 | AB168: 0.06526631658 | AC168: 0.006001500375 | AD168: 0.007501875469 | AE168: 0.1057764441 | AF168: 0.02 | AG168: 46.91 | AH168: 151.79323 | AI168: -31.90553
T169: 168 | U169: Old Bar - Manning Point - Red Head | V169: New South Wales | W169: 0 | X169: 0.005427408412 | Y169: 0 | Z169: 0 | AA169: 0.8073270014 | AB169: 0.08276797829 | AC169: 0.006784260516 | AD169: 0.004070556309 | AE169: 0.09362279512 | AF169: 0.02 | AG169: 12.28 | AH169: 152.54406 | AI169: -31.97257
T170: 169 | U170: Taree | V170: New South Wales | W170: 0.0003848127245 | X170: 0.005643919959 | Y170: 0 | Z170: 0 | AA170: 0.8635197537 | AB170: 0.07888660852 | AC170: 0.00833760903 | AD170: 0.004746023602 | AE170: 0.03848127245 | AF170: 0.02 | AG170: 16.4 | AH170: 152.46696 | AI170: -31.90932
T171: 170 | U171: Taree Region | V171: New South Wales | W171: 0.004371584699 | X171: 0 | Y171: 0 | Z171: 0 | AA171: 0.7803278689 | AB171: 0.05901639344 | AC171: 0.02076502732 | AD171: 0.003278688525 | AE171: 0.1322404372 | AF171: 0.02 | AG171: 16.47 | AH171: 152.25523 | AI171: -31.77612
T172: 171 | U172: Wingham | V172: New South Wales | W172: 0 | X172: 0 | Y172: 0 | Z172: 0 | AA172: 0.8330592105 | AB172: 0.09128289474 | AC172: 0.009046052632 | AD172: 0.009046052632 | AE172: 0.05756578947 | AF172: 0.02 | AG172: 15.36 | AH172: 152.35573 | AI172: -31.85813
T173: 172 | U173: Albury - East | V173: New South Wales | W173: 0 | X173: 0.004466501241 | Y173: 0 | Z173: 0 | AA173: 0.8918114144 | AB173: 0.05210918114 | AC173: 0.008436724566 | AD173: 0.01315136476 | AE173: 0.0300248139 | AF173: 0.02 | AG173: 19.95 | AH173: 147.01361 | AI173: -36.05965
T174: 173 | U174: Albury - North | V174: New South Wales | W174: 0.00293040293 | X174: 0.004395604396 | Y174: 0 | Z174: 0 | AA174: 0.8798534799 | AB174: 0.05787545788 | AC174: 0.002197802198 | AD174: 0.01172161172 | AE174: 0.04102564103 | AF174: 0.02 | AG174: 16.19 | AH174: 146.90234 | AI174: -36.04099
T175: 174 | U175: Albury - South | V175: New South Wales | W175: 0.0004426247649 | X175: 0.007081996238 | Y175: 0 | Z175: 0 | AA175: 0.8631182915 | AB175: 0.0667256833 | AC175: 0.004204935266 | AD175: 0.01206152484 | AE175: 0.04636494412 | AF175: 0.02 | AG175: 20.33 | AH175: 146.86735 | AI175: -36.06175
T176: 175 | U176: Albury Region | V176: New South Wales | W176: 0.001647446458 | X176: 0.006177924217 | Y176: 0 | Z176: 0 | AA176: 0.8266062603 | AB176: 0.0481878089 | AC176: 0.01070840198 | AD176: 0.01482701812 | AE176: 0.09184514003 | AF176: 0.02 | AG176: 37.2 | AH176: 147.18368 | AI176: -35.75632
T177: 176 | U177: Lavington | V177: New South Wales | W177: 0 | X177: 0.002532561505 | Y177: 0 | Z177: 0 | AA177: 0.8650506512 | AB177: 0.07344428365 | AC177: 0.007597684515 | AD177: 0.01193921852 | AE177: 0.03943560058 | AF177: 0.02 | AG177: 15.63 | AH177: 146.94156 | AI177: -36.03173
T178: 177 | U178: Hay | V178: New South Wales | W178: 0 | X178: 0 | Y178: 0.005592841163 | Z178: 0 | AA178: 0.7281879195 | AB178: 0.07494407159 | AC178: 0.01454138702 | AD178: 0.02125279642 | AE178: 0.1554809843 | AF178: 0.02 | AG178: 60.48 | AH178: 144.70734 | AI178: -34.1527
T179: 178 | U179: Wentworth - Buronga | V179: New South Wales | W179: 0 | X179: 0.00435594275 | Y179: 0 | Z179: 0 | AA179: 0.8326073429 | AB179: 0.06907280647 | AC179: 0.008711885501 | AD179: 0.003733665215 | AE179: 0.08151835719 | AF179: 0.02 | AG179: 15.72 | AH179: 142.0413 | AI179: -34.11418
T180: 179 | U180: Wentworth-Balranald Region | V180: New South Wales | W180: 0 | X180: 0.03004694836 | Y180: 0 | Z180: 0 | AA180: 0.6901408451 | AB180: 0.1004694836 | AC180: 0.01126760563 | AD180: 0.01220657277 | AE180: 0.1558685446 | AF180: 0.02 | AG180: 50.27 | AH180: 142.90415 | AI180: -33.78332
T181: 180 | U181: Corowa | V181: New South Wales | W181: 0 | X181: 0.005211047421 | Y181: 0 | Z181: 0 | AA181: 0.8566961959 | AB181: 0.08077123502 | AC181: 0.001563314226 | AD181: 0.004168837936 | AE181: 0.05158936946 | AF181: 0.02 | AG181: 16.89 | AH181: 146.35833 | AI181: -35.99399
T182: 181 | U182: Corowa Region | V182: New South Wales | W182: 0.002580645161 | X182: 0.004516129032 | Y182: 0 | Z182: 0 | AA182: 0.8083870968 | AB182: 0.06774193548 | AC182: 0.005806451613 | AD182: 0.03290322581 | AE182: 0.07806451613 | AF182: 0.02 | AG182: 42.15 | AH182: 146.28142 | AI182: -35.64317
T183: 182 | U183: Deniliquin | V183: New South Wales | W183: 0 | X183: 0.002107925801 | Y183: 0 | Z183: 0 | AA183: 0.844856661 | AB183: 0.06070826307 | AC183: 0.005059021922 | AD183: 0.01222596965 | AE183: 0.07504215852 | AF183: 0.02 | AG183: 26.3 | AH183: 144.97318 | AI183: -35.52909
T184: 183 | U184: Deniliquin Region | V184: New South Wales | W184: 0 | X184: 0.005928853755 | Y184: 0 | Z184: 0 | AA184: 0.7747035573 | AB184: 0.06258234519 | AC184: 0.0303030303 | AD184: 0.006587615283 | AE184: 0.1198945982 | AF184: 0.02 | AG184: 23.22 | AH184: 144.61293 | AI184: -35.30765
T185: 184 | U185: Moama | V185: New South Wales | W185: 0 | X185: 0.003636363636 | Y185: 0 | Z185: 0 | AA185: 0.8581818182 | AB185: 0.06272727273 | AC185: 0.002727272727 | AD185: 0.01 | AE185: 0.06272727273 | AF185: 0.02 | AG185: 15.78 | AH185: 144.77572 | AI185: -36.05788
T186: 185 | U186: Tocumwal - Finley - Jerilderie | V186: New South Wales | W186: 0 | X186: 0.002367424242 | Y186: 0 | Z186: 0 | AA186: 0.7978219697 | AB186: 0.0478219697 | AC186: 0.01183712121 | AD186: 0.01089015152 | AE186: 0.1292613636 | AF186: 0.02 | AG186: 34.61 | AH186: 145.74446 | AI186: -35.45425
T187: 186 | U187: Armidale | V187: New South Wales | W187: 0 | X187: 0.008652806153 | Y187: 0 | Z187: 0 | AA187: 0.8130032448 | AB187: 0.0889316188 | AC187: 0.008051916837 | AD187: 0.01261867564 | AE187: 0.06874173777 | AF187: 0.02 | AG187: 23.02 | AH187: 151.66777 | AI187: -30.50315
T188: 187 | U188: Armidale Region - North | V188: New South Wales | W188: 0.003253796095 | X188: 0.005422993492 | Y188: 0 | Z188: 0 | AA188: 0.7646420824 | AB188: 0.1117136659 | AC188: 0.01409978308 | AD188: 0.003253796095 | AE188: 0.09761388286 | AF188: 0.02 | AG188: 21.5 | AH188: 151.93094 | AI188: -30.33665
T189: 188 | U189: Armidale Region - South | V189: New South Wales | W189: 0.004519774011 | X189: 0.01129943503 | Y189: 0 | Z189: 0 | AA189: 0.7548022599 | AB189: 0.05875706215 | AC189: 0.01807909605 | AD189: 0.01694915254 | AE189: 0.1355932203 | AF189: 0.02 | AG189: 27.05 | AH189: 151.39481 | AI189: -30.57751
T190: 189 | U190: Walcha | V190: New South Wales | W190: 0 | X190: 0 | Y190: 0 | Z190: 0 | AA190: 0.7740440324 | AB190: 0.06257242178 | AC190: 0.01853997683 | AD190: 0.003476245655 | AE190: 0.1413673233 | AF190: 0.02 | AG190: 44.35 | AH190: 151.75321 | AI190: -31.1664
T191: 190 | U191: Glen Innes | V191: New South Wales | W191: 0 | X191: 0.002626970228 | Y191: 0 | Z191: 0 | AA191: 0.7894045534 | AB191: 0.07486865149 | AC191: 0.007880910683 | AD191: 0.01050788091 | AE191: 0.1147110333 | AF191: 0.02 | AG191: 45.67 | AH191: 151.90305 | AI191: -29.64501
T192: 191 | U192: Inverell | V192: New South Wales | W192: 0.0009957679861 | X192: 0.002489419965 | Y192: 0 | Z192: 0 | AA192: 0.8464027882 | AB192: 0.09210853871 | AC192: 0.009957679861 | AD192: 0.00572566592 | AE192: 0.04232013941 | AF192: 0.02 | AG192: 26.08 | AH192: 151.11003 | AI192: -29.76258
T193: 192 | U193: Inverell Region - East | V193: New South Wales | W193: 0 | X193: 0.01733102253 | Y193: 0 | Z193: 0 | AA193: 0.7088388215 | AB193: 0.07105719237 | AC193: 0.0294627383 | AD193: 0 | AE193: 0.1733102253 | AF193: 0.02 | AG193: 22.6 | AH193: 151.11682 | AI193: -29.46048
T194: 193 | U194: Inverell Region - West | V194: New South Wales | W194: 0 | X194: 0.003181336161 | Y194: 0 | Z194: 0 | AA194: 0.7518557794 | AB194: 0.05514316013 | AC194: 0.01484623542 | AD194: 0.008483563097 | AE194: 0.1664899258 | AF194: 0.02 | AG194: 42.55 | AH194: 150.58985 | AI194: -29.74431
T195: 194 | U195: Tenterfield | V195: New South Wales | W195: 0.003720238095 | X195: 0.006696428571 | Y195: 0 | Z195: 0 | AA195: 0.7566964286 | AB195: 0.07961309524 | AC195: 0.01488095238 | AD195: 0.006696428571 | AE195: 0.1316964286 | AF195: 0.02 | AG195: 27.51 | AH195: 152.08644 | AI195: -28.94386
T196: 195 | U196: Moree | V196: New South Wales | W196: 0 | X196: 0.004857737682 | Y196: 0 | Z196: 0 | AA196: 0.8362248439 | AB196: 0.08084663428 | AC196: 0.009368494101 | AD196: 0.007980569049 | AE196: 0.06072172103 | AF196: 0.02 | AG196: 21.63 | AH196: 149.82654 | AI196: -29.46106
T197: 196 | U197: Moree Region | V197: New South Wales | W197: 0 | X197: 0.002230483271 | Y197: 0 | Z197: 0 | AA197: 0.7695167286 | AB197: 0.06765799257 | AC197: 0.007434944238 | AD197: 0.002230483271 | AE197: 0.150929368 | AF197: 0.02 | AG197: 20.4 | AH197: 149.70365 | AI197: -29.22954
T198: 197 | U198: Narrabri | V198: New South Wales | W198: 0 | X198: 0.004700854701 | Y198: 0 | Z198: 0 | AA198: 0.8431623932 | AB198: 0.07136752137 | AC198: 0.005128205128 | AD198: 0.008974358974 | AE198: 0.06666666667 | AF198: 0.02 | AG198: 18.62 | AH198: 149.80283 | AI198: -30.35313
T199: 198 | U199: Narrabri Region | V199: New South Wales | W199: 0 | X199: 0.01975683891 | Y199: 0 | Z199: 0 | AA199: 0.7720364742 | AB199: 0.09498480243 | AC199: 0.005319148936 | AD199: 0.006838905775 | AE199: 0.1010638298 | AF199: 0.02 | AG199: 19.61 | AH199: 149.52237 | AI199: -30.33359
T200: 199 | U200: Gunnedah | V200: New South Wales | W200: 0 | X200: 0.004157218443 | Y200: 0 | Z200: 0 | AA200: 0.8408919123 | AB200: 0.08352229781 | AC200: 0.009448223734 | AD200: 0.004157218443 | AE200: 0.05782312925 | AF200: 0.02 | AG200: 25.61 | AH200: 150.22303 | AI200: -30.98442
... 2049 more rows
